{"text_format":"1","workbook":"xlsx","n_sheets":12,"sheets":["Version","Instructions","Partner Readiness Dates","Partner Peering Worksheet","Single Sign On (SSO) - FedRAMP","General Contact Information","Webex Edge Connect","Fiber Connect","Virtual Connect - VPN","Virtual Connect - vSD-WAN","Virtual Connect - mSD-WAN","Dedicated Instance Data Centers"],"not_rendered":{"charts":0,"images":0,"macros":1,"external_links":0,"defined_names":3,"comments":1,"pivot_tables":0},"unopened":[],"bounds":{"document_bytes":16777216,"sheet_cells":100000,"rows_first":2000,"rows_last":500,"rows_between":2000,"halvings":0,"cell_chars":16384,"cell_head_chars":4096},"cells_cut":0,"cells_raw":0,"read":"whole","date_system":"1900"}

{"sheet":"Version","index":0,"n_rows":11,"n_cols":3,"rows_kept":11,"cut":false,"hidden":false,"merged":[[10,0,10,2],[9,0,9,2]]}
["Document Number","EDCS-18860452"]
["Date","Version","Notes"]
["2019-10-01",1,"Initial release for UCM Cloud offer"]
["2020-04-22",2,"- Consolidated Partner Peering Worksheet (Direct and ECX)\n- Added Direct Connect WxEdge, Fiber, VPN Options\n- Updated Instructions"]
["2020-05-18",2.1,"- Corrected addresses in VPN Worksheet\n- Updated Instructions"]
["2020-10-08",2.2000000000000002,"Process clarifications"]
["2021-08-19",3,"Overhaul of all worksheets, navigation and instructions."]
["2021-08-24",3.1,"Corrected ASN values"]
[]
["© 2020 Cisco and/or its affiliates. All rights reserved. Cisco Confidential"]
["Cisco and the Cisco logo are trademarks or registered trademarks of Cisco and/or its affiliates in the U.S. and other countries. To view a list of Cisco trademarks, go to this URL: www.cisco.com/go/trademarks. Third-party trademarks mentioned are the property of their respective owners. The use of the word partner does not imply a partnership relationship between Cisco and any other company. "]

{"sheet":"Instructions","index":1,"n_rows":107,"n_cols":6,"rows_kept":107,"cut":false,"hidden":false,"merged":[[45,1,45,3],[19,1,19,3],[25,1,25,3],[36,1,36,3],[44,1,44,3],[33,1,33,3],[38,1,38,3],[39,1,39,3],[40,1,40,3],[41,1,41,3],[42,1,42,3],[31,1,31,3],[32,1,32,3],[29,1,29,3],[34,1,34,3],[37,1,37,3],[23,1,23,3],[26,1,26,3],[27,1,27,3],[28,1,28,3],[30,1,30,3],[12,1,12,2],[1,1,8,3],[20,1,20,3],[21,1,21,3],[22,1,22,3],[13,3,17,3]]}
[]
[null,"Partner Connect - Peering Questionnaire (PQ) workbook is used to exchange technical details between Cisco and partners for all types of peering. A PQ is required per Geography:\nAMER (SJC/DFW)\nEMEA (LHR/AMS)\nEU   (FRA/AMS)\nAPAC (SIN/TOK)\nAUS  (MEL/SYD)\n\nNOTE:  Critical Input cells are highlighted in yellow throughout this workbook, and many cells have drop-down lists."]
[]
[]
[]
[]
[null,null,null,null,null,{"$f":"IF(specifyUse=\"Specify the Use for this Peering Questionnaire\",\"\",\"Please find Navigation below\")","v":"Please find Navigation below"}]
[null,null,null,null,null,"Instructions"]
[null,null,null,null,null,"General Contact Information"]
[null,null,null,null,null,"Partner Readiness Dates"]
[null,"Macros must be enabled for this workbook to function.",null,null,null,"Partner Peering Worksheet"]
[null,null,null,null,null,"Dedicated Instance Data Centers"]
[null,"Partner Peering",null,"<-- Drop Down List"]
[null,"Webex Edge Connect","Please Select","<-- Drop Down Lists\n\nChange \"Select\" to \"Yes\" from the drop down list as applicable to this Peering Questionnaire."]
[null,"Fiber Connect","Please Select"]
[null,"Virtual Connect - VPN","Please Select"]
[null,"Virtual Connect - vSD-WAN (Viptela)","Please Select"]
[null,"Virtual Connect - mSD-WAN (Meraki)","Please Select"]
[]
[null,"Partner Peering Instructions"]
[null,"1.    Complete the General Contact Information sheet"]
[null,"2.    Complete the Partner Readiness Dates sheet"]
[null,"4.    Complete the Partner Peering Worksheet according to whether the connection type is Direct peering or Cloud Exchange (ECX) peering"]
[null,"5.   Save and Provide the PQ to Cisco.  File name Example:  PQ_<Partner Name>_<REGION>.xlsm"]
[]
[null,"Partner Peering | Direct Connect Peering Instructions"]
[null,"1.    Complete the information in the Partner Peering Worksheet, choosing Direct as the Connection Type"]
[null,"2.    Cisco will provide you with a Letter of Authorization (LOA) "]
[null,"3.    All peering requests will go through an internal Cisco review before approval"]
[null,"4.    Partner"]
[null,"     a.    Works with Equinix to complete the wiring according to the LOA"]
[null,"     b.    Completes the BGP/Routing configuration for the respective Virtual Connections/VRFs and notifies Cisco"]
[null,"5. Cisco will provision the BGP session with DENY ALL policy and validate end-to-end"]
[null,"6. If successful, Partner will receive a notification that peering connection state is Active"]
[null,"7. Traffic will then be allowed through the new peering"]
[]
[null,"Partner Peering | Cloud Exchange (ECX) Peering"]
[null,"1. Complete the information in the Partner Peering Worksheet, choosing ECX as the Connection Type"]
[null,"2. Once the peering request is approved, connection state changes to Approved (Cisco LOA is not required for ECX)"]
[null,"3. Configure the BGP session, and notify Cisco"]
[null,"4. Cisco will provision the BGP session with DENY ALL policy and validate end-to-end"]
[null,"5. If successful, Partner will receive a notification that peering connection state is Active"]
[null,"6. Traffic will then be allowed through the new peering"]
[]
[null,"Webex Calling Dedicated Instance Data Centers"]
[null,"This provides information about the dedicated instance data centers"]
[]
[]
[]
[]
[]
[]
[]
[]
[]
[]
[]
[]
[]
[]
[]
[]
[]
[]
[]
[]
[]
[]
[]
[]
[]
[]
[]
[]
[]
[]
[]
[]
[]
[]
[]
[]
[]
[]
[]
[]
[]
[]
[]
[]
[]
[]
[]
[]
[]
[null,"Version"]
[null,"Instructions"]
[null,"Partner Readiness Dates"]
[null,"Partner Peering Worksheet"]
[null,"Single Sign On (SSO) - FedRAMP"]
[null,"General Contact Information"]
[]
[]
[]
[]
[]
[null,"Dedicated Instance Data Centers"]

{"sheet":"Partner Readiness Dates","index":2,"n_rows":24,"n_cols":7,"rows_kept":24,"cut":false,"hidden":false,"merged":[[3,1,3,4],[17,2,19,2],[14,2,16,2],[20,2,22,2],[14,3,16,3],[14,4,16,4],[17,3,19,3],[17,4,19,4],[20,3,22,3],[13,1,25,1],[23,2,25,2],[23,3,25,3],[23,4,25,4],[4,1,11,4],[20,4,22,4]]}
[]
[null,"Partner Name:"]
[]
[null,"Peering Questionnaire (PQ) - Partner Readiness Dates"]
[null,"Peering Questionnaire (PQ) is used for gathering connection details when onboarding a dedicated instance partner.\nComplete this sheet to provide Readiness Dates for Partner Peering.\n\nA PQ is required per Geography:\nAMER (SJC/DFW)\nEMEA (LHR/AMS)\nEU   (FRA/AMS)\nAPAC (SIN/TOK)\nAUS  (MEL/SYD)"]
[]
[null,null,null,null,null,null,{"$f":"IF(specifyUse=\"Specify the Use for this Peering Questionnaire\",\"\",\"Please find Navigation below\")","v":"Please find Navigation below"}]
[null,null,null,null,null,null,"Instructions"]
[null,null,null,null,null,null,"General Contact Information"]
[null,null,null,null,null,null,"Partner Readiness Dates"]
[null,null,null,null,null,null,"Partner Peering Worksheet"]
[null,null,null,null,null,null,"Dedicated Instance Data Centers"]
[]
[null,"To enable Cisco to plan the resources, issue LOAs and meet partner’s timelines, Cisco requests the partner to provide the following information.  ","Partner Readiness Dates","Date","Comments"]
[null,null,"If partner already has devices at the peering setup at the Equinix locations, when will the partner be ready to initiate the peering with Cisco?"]
[]
[]
[null,null,"If no devices, when will partner have devices identified, procured, installed deployed and ready for configuration/peering?"]
[]
[]
[null,null,"If the partner already has ECX peering setup at any of the Equinix locations, when will the partner be ready to order the virtual connections for Cisco UC cloud services?"]
[]
[]
[null,null,"If the partner does not have ECX peering setup at any of the Equinix locations, when will the partner be ready with ECX peering at any of the Equinix locations?"]

{"sheet":"Partner Peering Worksheet","index":3,"n_rows":60,"n_cols":10,"rows_kept":60,"cut":false,"hidden":false,"merged":[[3,1,3,4],[37,1,38,1],[39,1,40,1],[41,1,47,1],[40,3,40,4],[39,3,39,4],[14,1,18,1],[33,1,36,1],[20,1,20,4],[21,1,24,1],[25,1,28,1],[29,1,32,1],[22,4,36,4],[4,1,13,4]]}
[]
[null,"Partner Name:"]
[]
[null,"Peering Questionnaire (PQ) - Partner Peering"]
[null,"\nPeering Questionnaire (PQ) is used for gathering connection details when onboarding a dedicated instance partner.\nComplete this sheet to provide Readiness Dates for Partner Peering.\n\nA PQ is required per Geography:\nAMER (SJC/DFW)\nEMEA (LHR/AMS)\nEU   (FRA/AMS)\nAPAC (SIN/TOK)\nAUS  (MEL/SYD)"]
[]
[null,null,null,null,null,null,null,{"$f":"IF(specifyUse=\"Specify the Use for this Peering Questionnaire\",\"\",\"Please find Navigation below\")","v":"Please find Navigation below"}]
[null,null,null,null,null,null,null,"Instructions"]
[null,null,null,null,null,null,null,"General Contact Information"]
[null,null,null,null,null,null,null,"Partner Readiness Dates"]
[null,null,null,null,null,null,null,"Partner Peering Worksheet"]
[null,null,null,null,null,null,null,"Dedicated Instance Data Centers"]
[]
[]
[null,"Specify the Geo for this PQ and connection details for each peering location.  Link speed for direct is either 10 or 1Gbps, and ECX, 200 or 50Mbps.","Identify the Geo for this PQ"]
[null,null,"Select"]
[null,null,"Peering Locations","Connection Type","Connection Speed","Cisco SFP"]
[null,null,{"$f":"IF($C$16=\"AMER\",\"San Jose, CA\",IF($C$16=\"EMEA\",\"London, UK\",IF($C$16=\"EU\",\"Frankfurt, Germany\",IF($C$16=\"APAC\",\"Singapore\",IF($C$16=\"AUS\",\"Melbourne, Australia\",IF($C$16=\"Select\",\"<Select Geo Above>\",IF($C$16=\"\",\"<Select Geo Above>\")))))))","v":"<Select Geo Above>"},"Select","Select",{"$f":"IF($E$18=\"10Gbps\",\"SFP-10G-LR\",IF($E$18=\"1Gbps\",\"GLC-LH-SMD\",IF($E$18=\"Select\",\"<-- Select Link Speed>\",IF($E$18=\"\",\"<-- Select Link Speed>\",IF($E$18=\"200Mbps\",\"N/A for ECX\",IF($E$18=\"50Mbps\",\"N/A for ECX\"))))))","v":"<-- Select Link Speed>"}]
[null,null,{"$f":"IF($C$16=\"AMER\",\"Dallas, TX\",IF($C$16=\"EMEA\",\"Amsterdam, Netherlands\",IF($C$16=\"EU\",\"Amsterdam, Netherlands\",IF($C$16=\"APAC\",\"Tokyo, Japan\",IF($C$16=\"AUS\",\"Sydney, Australia\",IF($C$16=\"Select\",\"<Select Geo Above>\",IF($C$16=\"\",\"<Select Geo Above>\")))))))","v":"<Select Geo Above>"},"Select","Select",{"$f":"IF($E$19=\"10Gbps\",\"SFP-10G-LR\",IF($E$19=\"1Gbps\",\"GLC-LH-SMD\",IF($E$19=\"Select\",\"<-- Select Link Speed>\",IF($E$19=\"\",\"<-- Select Link Speed>\",IF($E$19=\"200Mbps\",\"N/A for ECX\",IF($E$19=\"50Mbps\",\"N/A for ECX\"))))))","v":"<-- Select Link Speed>"}]
[]
[null,"Partner Management (Access) Network (VRF)"]
[null,"IP Addressing and Routing. A-Side interface details. Use CIDR notation, allocating higher address to Cisco.",{"$f":"IF($C$16=\"AMER\",\"SJC, A-Side Interface Details\",IF($C$16=\"EMEA\",\"London, A-Side Interface Details\",IF($C$16=\"EU\",\"Frankfurt, A-Side Interface Details\",IF($C$16=\"APAC\",\"Singapore, A-Side Interface Details\",IF($C$16=\"AUS\",\"Melbourne, A-Side Interface Details\",IF($C$16=\"Select\",\"<Select Geo Above>, A-Side Interface Details\",IF($C$16=\"\",\"<Select Geo Above>, A-Side Interface Details\")))))))","v":"<Select Geo Above>, A-Side Interface Details"},"Value","NOTE"]
[null,null,"Dot1Q tag",null,"Partner provided IP space that is public and 3rd party provider-independent.  Transient links require a /30 or /31 network, where Cisco reserves the higher IP."]
[null,null,"IP Address - Partner Side"]
[null,null,"IP Address - Cisco Side"]
[null,"IP Addressing and Routing. B-Side interface details. Use CIDR notation, allocating higher address to Cisco.",{"$f":"IF($C$16=\"AMER\",\"SJC, B-Side Interface Details\",IF($C$16=\"EMEA\",\"London, B-Side Interface Details\",IF($C$16=\"EU\",\"Frankfurt, B-Side Interface Details\",IF($C$16=\"APAC\",\"Singapore, B-Side Interface Details\",IF($C$16=\"AUS\",\"Mebourne, B-Side Interface Details\",IF($C$16=\"Select\",\"<Select Geo Above>, B-Side Interface Details\",IF($C$16=\"\",\"<Select Geo Above>, B-Side Interface Details\")))))))","v":"<Select Geo Above>, B-Side Interface Details"},"Value"]
[null,null,"Dot1Q tag"]
[null,null,"IP Address - Partner Side"]
[null,null,"IP Address - Cisco Side"]
[null,"IP Addressing and Routing. A-Side interface details. Use CIDR notation, allocating higher address to Cisco.",{"$f":"IF($C$16=\"AMER\",\"DFW, A-Side Interface Details\",IF($C$16=\"EMEA\",\"Amsterdam, A-Side Interface Details\",IF($C$16=\"EU\",\"Amsterdam, A-Side Interface Details\",IF($C$16=\"APAC\",\"Tokyo, A-Side Interface Details\",IF($C$16=\"AUS\",\"Sydney, A-Side Interface Details\",IF($C$16=\"Select\",\"<Select Geo Above>, A-Side Interface Details\",IF($C$16=\"\",\"<Select Geo Above>, A-Side Interface Details\")))))))","v":"<Select Geo Above>, A-Side Interface Details"},"Value"]
[null,null,"Dot1Q tag"]
[null,null,"IP Address - Partner Side"]
[null,null,"IP Address - Cisco Side"]
[null,"IP Addressing and Routing. B-Side interface details. Use CIDR notation, allocating higher address to Cisco.",{"$f":"IF($C$16=\"AMER\",\"DFW, B-Side Interface Details\",IF($C$16=\"EMEA\",\"Amsterdam, B-Side Interface Details\",IF($C$16=\"EU\",\"Amsterdam, B-Side Interface Details\",IF($C$16=\"APAC\",\"Tokyo, B-Side Interface Details\",IF($C$16=\"AUS\",\"Sydney, B-Side Interface Details\",IF($C$16=\"Select\",\"<Select Geo Above>, B-Side Interface Details\",IF($C$16=\"\",\"<Select Geo Above>, B-Side Interface Details\")))))))","v":"<Select Geo Above>, B-Side Interface Details"},"Value"]
[null,null,"Dot1Q tag"]
[null,null,"IP Address - Partner Side"]
[null,null,"IP Address - Cisco Side"]
[null,"Provide a /16 network for the purpose of NAT'ing Customer Instances for Mgmt Access. Split the /16 into 2 /17 networks for each Regional DC.  Cisco will advertise these networks to Partner.\n\n","Partner Management Network (/16)",{"$f":"IF($C$16=\"AMER\",\"SJC /17\",IF($C$16=\"EMEA\",\"London /17\",IF($C$16=\"EU\",\"Frankfurt /17\",IF($C$16=\"APAC\",\"Singapore /17\",IF($C$16=\"AUS\",\"Melbourne /17\",IF($C$16=\"Select\",\"<Select Geo Above> /17\",IF($C$16=\"\",\"<Select Geo Above> /17\")))))))","v":"<Select Geo Above> /17"},{"$f":"IF($C$16=\"AMER\",\"DFW /17\",IF($C$16=\"EMEA\",\"Amsterdam /17\",IF($C$16=\"EU\",\"Amsterdam /17\",IF($C$16=\"APAC\",\"Tokyo /17\",IF($C$16=\"AUS\",\"Sydney /17\",IF($C$16=\"Select\",\"<Select Geo Above> /17\",IF($C$16=\"\",\"<Select Geo Above> /17\")))))))","v":"<Select Geo Above> /17"}]
[null,null,"EX: 10.10.0.0/16","EX: 10.10.0.0/17","EX: 10.10.128.0/17"]
[null,"Specify all the source IP networks from where the partner will access the customer UC apps.  Partner must advertise these networks to Cisco.","Partner Management Routing Information","Value"]
[null,null,"Source IP address(es) that partner uses to access Customer Instances, in CIDR notation.  Cisco will use this information to apply route filtering.","EX: 192.168.5.0/25, 10.10.10.0/24"]
[null,"eBGP needs to be configured for each transient interface, with the BGP neighbor pointing to the corresponding interface on the Cisco side.\n\nPartner ASN can be private or public.\n\nSpecify the BGP information.","Partner Management BGP Config","Value","NOTE"]
[null,null,"Cisco ASN",{"$f":"IF($C$16=\"AMER\",\"13445\",IF($C$16=\"EMEA\",\"13445\",IF($C$16=\"EU\",\"13445\",IF($C$16=\"APAC\",\"13445\",IF($C$16=\"AUS\",\"13445 - SYD \n399937 - MEL\",IF($C$16=\"Select\",\"<Select Geo Above>\",IF($C$16=\"\",\"<Select Geo Above>\")))))))","v":"<Select Geo Above>"},"Partner will use this ASN to set their eBGP systems"]
[null,null,"Partner ASN",null,"Cisco will use this for setting up eBGP towards the partner"]
[null,null,"BGP Password",null,"Optional"]
[null,null,"BFD Multiplier",null,5]
[null,null,"BFD Minimum-Interval",null,999]
[null,null,"Other Attributes if any"]
[]
[]
[]
[]
[]
[]
[null,null,null,null,null,null,null,null,null,{"$f":"IF(specifyUse=\"Specify the Use for this Peering Questionnaire\",\"\",\"Please find Navigation below\")","v":"Please find Navigation below"}]
[null,null,null,null,null,null,null,null,null,"Instructions"]
[null,null,null,null,null,null,null,null,null,"General Contact Information"]
[null,null,null,null,null,null,null,null,null,"Partner Readiness Dates"]
[null,null,null,null,null,null,null,null,null,"Partner Peering Worksheet"]
[null,null,null,null,null,null,null,null,null,"Dedicated Instance Data Centers"]

{"sheet":"Single Sign On (SSO) - FedRAMP","index":4,"n_rows":14,"n_cols":7,"rows_kept":14,"cut":false,"hidden":false,"merged":[[9,1,13,1],[3,1,3,4],[4,1,8,4]]}
[]
[null,"Partner Name:"]
[]
[null,"UCM Cloud Peering Questionnaire (PQ) - SSO for UCM Cloud for Government Partner Peering"]
[null,"Peering Questionnaire (PQ) is used for gathering connection details when onboarding a UCM Cloud Partner\nComplete this sheet to provide Partner Peering SSO information for a UCM Cloud for Government (FedRAMP Authorized) partner.\n\nA PQ is required, at a minimum, per Partner/Customer, per Geography (AMER, EMEA, APAC)\nAdditional information on Peering can be found on the UCM Cloud Help Portal,  https://ucmcloudhelp.cisco.com/"]
[]
[null,null,null,null,null,null,{"$f":"IF(specifyUse=\"Specify the Use for this Peering Questionnaire\",\"\",\"Please find Navigation below\")","v":"Please find Navigation below"}]
[null,null,null,null,null,null,"Instructions"]
[null,null,null,null,null,null,"General Contact Information"]
[null,"Answer the following questions specific to the IDP that will be used by the partner for SSO integration.","Partner Single Sign On (SSO) Integration","Value","NOTE",null,"Partner Readiness Dates"]
[null,null,"Partner Email Domain",null,"Example: xyz.com",null,"Partner Peering Worksheet"]
[null,null,"IdP Server Type",null,null,null,"Single Sign On (SSO) - FedRAMP"]
[null,null,"IdP FQDN",null,null,null,"UCM Cloud Data Centers"]
[null,null,"IdP IP Address"]

{"sheet":"General Contact Information","index":5,"n_rows":12,"n_cols":5,"rows_kept":12,"cut":false,"hidden":false,"merged":[[1,1,1,2]]}
[]
[null,"General Contact Information"]
[null,"Partner Name"]
[null,"Partner Project Manager Name"]
[null,"Partner Project Manager Email"]
[]
[null,"Partner Technical Contact Name",null,null,{"$f":"IF(specifyUse=\"Specify the Use for this Peering Questionnaire\",\"\",\"Please find Navigation below\")","v":"Please find Navigation below"}]
[null,"Partner Technical Contact Email",null,null,"Instructions"]
[null,null,null,null,"General Contact Information"]
[null,null,null,null,"Partner Readiness Dates"]
[null,null,null,null,"Partner Peering Worksheet"]
[null,null,null,null,"Dedicated Instance Data Centers"]

{"sheet":"Webex Edge Connect","index":6,"n_rows":42,"n_cols":7,"rows_kept":42,"cut":false,"hidden":true,"merged":[[26,1,28,1],[18,4,28,4],[4,1,4,4],[10,1,14,1],[11,4,14,4],[5,1,9,4],[35,4,37,4],[34,1,41,1],[16,1,16,4],[17,1,19,1],[23,1,25,1],[32,1,33,1],[32,3,32,4],[33,3,33,4],[29,1,31,1],[29,3,29,4],[30,3,31,4],[20,1,22,1]]}
[]
[null,"Partner Name:"]
[null,"Customer Name:"]
[]
[null,"UCM Cloud Peering Questionnaire (PQ) - Direct Connect, Webex Edge Connect"]
[null,"Peering Questionnaire (PQ) is used for gathering connection details when onboarding a UCM Cloud Partner \nComplete this sheet to provide Customer Peering information for Direct Connect via Webex Edge.\n\nA PQ is required, at a minimum, per Partner/Customer, per Geography (AMER, EMEA, APAC)\nAdditional information on Peering can be found on the UCM Cloud Help Portal,  https://ucmcloudhelp.cisco.com/"]
[null,null,null,null,null,null,{"$f":"IF(specifyUse=\"Specify the Use for this Peering Questionnaire\",\"\",\"Please find Navigation below\")","v":"Please find Navigation below"}]
[null,null,null,null,null,null,"Instructions"]
[null,null,null,null,null,null,"General Contact Information"]
[null,null,null,null,null,null,"Webex Edge Connect"]
[null,"Specify the Geo for this PQ and ECX details.  When placing the order in ECX Portal, be certain both are provisioned at the ordered bandwidth.","Identify the Geo for this PQ",null,"NOTE",null,"Fiber Connect"]
[null,null,"Select",null,"Purchased speed should be adequate enough to cover the full deployment in the event of a link failure.",null,"UCM Cloud Data Centers"]
[null,null,"Peering Locations","Virtual Connect Speed"]
[null,null,{"$f":"IF($C$12=\"AMER\",\"San Jose, CA\",IF($C$12=\"EMEA\",\"London, UK\",IF($C$12=\"APAC\",\"Singapore\",IF($C$12=\"Select\",\"<Select Geo Above>\",IF($C$12=\"\",\"<Select Geo Above>\")))))","v":"<Select Geo Above>"},"Select"]
[null,null,{"$f":"IF($C$12=\"AMER\",\"Dallas, TX\",IF($C$12=\"EMEA\",\"Amsterdam, Netherlands\",IF($C$12=\"APAC\",\"Tokyo, Japan\",IF($C$12=\"Select\",\"<Select Geo Above>\",IF($C$12=\"\",\"<Select Geo Above>\")))))","v":"<Select Geo Above>"},{"$f":"D14","v":"Select"}]
[null,null,"Intra-DC Redundancy Purchased?","Select"]
[null,"Customer Access Network (ECX Virtual Network)"]
[null,"IP Addressing and Routing. ECX interface details. Use CIDR notation, allocating higher address to Cisco.",{"$f":"IF($C$12=\"AMER\",\"SJC, A-Side Interface Details\",IF($C$12=\"EMEA\",\"London, A-Side Interface Details\",IF($C$12=\"APAC\",\"Singapore, A-Side Interface Details\",IF($C$12=\"Select\",\"<Select Geo Above>, A-Side Interface Details\",IF($C$12=\"\",\"<Select Geo Above>, A-Side Interface Details\")))))","v":"<Select Geo Above>, A-Side Interface Details"},"Value","NOTE"]
[null,null,"IP Address - Customer Side",null,"Partner/Customer provided IP space that is public and 3rd party provider-independent.  Transient links require a /30 or /31 network."]
[null,null,"IP Address - Cisco Side"]
[null,"IP Addressing and Routing. ECX interface details. Use CIDR notation, allocating higher address to Cisco.",{"$f":"IF($C$12=\"AMER\",\"SJC, B-Side Interface Details\",IF($C$12=\"EMEA\",\"London, B-Side Interface Details\",IF($C$12=\"APAC\",\"Singapore, B-Side Interface Details\",IF($C$12=\"Select\",\"<Select Geo Above>, B-Side Interface Details\",IF($C$12=\"\",\"<Select Geo Above>, B-Side Interface Details\")))))","v":"<Select Geo Above>, B-Side Interface Details"},"Value"]
[null,null,"IP Address - Customer Side"]
[null,null,"IP Address - Cisco Side"]
[null,"IP Addressing and Routing. ECX interface details. Use CIDR notation, allocating higher address to Cisco.",{"$f":"IF($C$12=\"AMER\",\"DFW, A-Side Interface Details\",IF($C$12=\"EMEA\",\"Amsterdam, A-Side Interface Details\",IF($C$12=\"APAC\",\"Tokyo, A-Side Interface Details\",IF($C$12=\"Select\",\"<Select Geo Above>, A-Side Interface Details\",IF($C$12=\"\",\"<Select Geo Above>, A-Side Interface Details\")))))","v":"<Select Geo Above>, A-Side Interface Details"},"Value"]
[null,null,"IP Address - Customer Side"]
[null,null,"IP Address - Cisco Side"]
[null,"IP Addressing and Routing. ECX interface details. Use CIDR notation, allocating higher address to Cisco.",{"$f":"IF($C$12=\"AMER\",\"DFW, B-Side Interface Details\",IF($C$12=\"EMEA\",\"Amsterdam, B-Side Interface Details\",IF($C$12=\"APAC\",\"Tokyo, B-Side Interface Details\",IF($C$12=\"Select\",\"<Select Geo Above>, B-Side Interface Details\",IF($C$12=\"\",\"<Select Geo Above>, B-Side Interface Details\")))))","v":"<Select Geo Above>, B-Side Interface Details"},"Value"]
[null,null,"IP Address - Customer Side"]
[null,null,"IP Address - Cisco Side"]
[null,"Customer UC Application and IaaS IP Subnets.\n\nNOTE: IaaS subnet used only if IaaS add-on has been purchased.","Customer Application Networks","NOTE"]
[null,null,{"$f":"IF($C$12=\"AMER\",\"UC Apps: 69.168.17.0/24\",IF($C$12=\"EMEA\",\"UC Apps: 178.215.138.0/24\",IF($C$12=\"APAC\",\"UC Apps: 103.232.71.0/24\",IF($C$12=\"Select\",\"<Select Geo Above>\",IF($C$12=\"\",\"<Select Geo Above>\")))))","v":"<Select Geo Above>"},"Cisco will split this network into 2 /25 subnets and advertise those back to the customers ECX CPE.  One subnet per redundant DC in the respective region.  Details provided in the Customer Build Document."]
[null,null,{"$f":"IF($C$12=\"AMER\",\"IaaS: 69.168.18.0/24\",IF($C$12=\"EMEA\",\"IaaS: 178.215.139.0/24\",IF($C$12=\"APAC\",\"IaaS: 103.232.69.0/24\",IF($C$12=\"Select\",\"<Select Geo Above>\",IF($C$12=\"\",\"<Select Geo Above>\")))))","v":"<Select Geo Above>"}]
[null,"Customer must provide a default route back to their network.  With Direct Connect Customers, no route filtering is applied.","Customer Provides Default Route","NOTE"]
[null,null,"0.0.0.0","When placing ECX order, the advertised prefixes field should only contain 0.0.0.0 for Direct Connect customer orders."]
[null,"eBGP needs to be configured for each transient interface, with the BGP neighbor pointing to the corresponding interface on the Cisco side.\n\nSpecify the BGP information.","Customer Access BGP Configuration","Value","NOTE"]
[null,null,"Cisco ASN",13445,"Customer ASNs can be public or private."]
[null,null,{"$f":"IF($C$12=\"AMER\",\"Customer ASN - SJC\",IF($C$12=\"EMEA\",\"Customer ASN - London\",IF($C$12=\"APAC\",\"Customer ASN - Singapore\",IF($C$12=\"Select\",\"Customer ASN - <Select Geo Above>\",IF($C$12=\"\",\"Customer ASN - <Select Geo Above>\")))))","v":"Customer ASN - <Select Geo Above>"}]
[null,null,{"$f":"IF($C$12=\"AMER\",\"Customer ASN - DFW\",IF($C$12=\"EMEA\",\"Customer ASN - Amsterdam\",IF($C$12=\"APAC\",\"Customer ASN - Tokyo\",IF($C$12=\"Select\",\"Customer ASN - <Select Geo Above>\",IF($C$12=\"\",\"Customer ASN - <Select Geo Above>\")))))","v":"Customer ASN - <Select Geo Above>"}]
[null,null,"BGP Password",null,"Optional"]
[null,null,"BFD Multiplier",null,5]
[null,null,"BFD Minimum-Interval",null,999]
[null,null,"Other Attributes if any"]

{"sheet":"Fiber Connect","index":7,"n_rows":43,"n_cols":7,"rows_kept":43,"cut":false,"hidden":true,"merged":[[29,1,31,1],[29,3,29,4],[30,3,31,4],[32,1,33,1],[34,1,42,1],[35,4,38,4],[4,1,4,4],[10,1,14,1],[16,1,16,4],[17,1,19,1],[18,4,28,4],[20,1,22,1],[23,1,25,1],[26,1,28,1],[5,1,9,4]]}
[]
[null,"Partner Name:"]
[null,"Customer Name:"]
[]
[null,"UCM Cloud Peering Questionnaire (PQ) - Direct Connect, Fiber Connect"]
[null,"Peering Questionnaire (PQ) is used for gathering connection details when onboarding a UCM Cloud Partner \nComplete this sheet to provide Customer Peering information for Direct Connect via Fiber.\n\nA PQ is required, at a minimum, per Partner/Customer, per Geography (AMER, EMEA, APAC)\nAdditional information on Peering can be found on the UCM Cloud Help Portal,  https://ucmcloudhelp.cisco.com/"]
[null,null,null,null,null,null,{"$f":"IF(specifyUse=\"Specify the Use for this Peering Questionnaire\",\"\",\"Please find Navigation below\")","v":"Please find Navigation below"}]
[null,null,null,null,null,null,"Instructions"]
[null,null,null,null,null,null,"General Contact Information"]
[null,null,null,null,null,null,"Webex Edge Connect"]
[null,"Specify the Geo for this PQ and connection details for each peering location.","Identify the Geo for this PQ",null,null,null,"Fiber Connect"]
[null,null,"Select",null,null,null,"UCM Cloud Data Centers"]
[null,null,"Peering Locations","Link Speed","Cisco SFP"]
[null,null,{"$f":"IF($C$12=\"AMER\",\"San Jose, CA\",IF($C$12=\"EMEA\",\"London, UK\",IF($C$12=\"APAC\",\"Singapore\",IF($C$12=\"Select\",\"<Select Geo Above>\",IF($C$12=\"\",\"<Select Geo Above>\")))))","v":"<Select Geo Above>"},"Select",{"$f":"IF($D$14=\"10Gbps\",\"SFP-10G-LR\",IF($D$14=\"1Gbps\",\"GLC-LH-SMD\",IF($D$14=\"Select\",\"<-- Select Link Speed>\",IF($D$14=\"\",\"<-- Select Link Speed>\"))))","v":"<-- Select Link Speed>"}]
[null,null,{"$f":"IF($C$12=\"AMER\",\"Dallas, TX\",IF($C$12=\"EMEA\",\"Amsterdam, Netherlands\",IF($C$12=\"APAC\",\"Tokyo, Japan\",IF($C$12=\"Select\",\"<Select Geo Above>\",IF($C$12=\"\",\"<Select Geo Above>\")))))","v":"<Select Geo Above>"},"Select",{"$f":"IF($D$15=\"10Gbps\",\"SFP-10G-LR\",IF($D$15=\"1Gbps\",\"GLC-LH-SMD\",IF($D$15=\"Select\",\"<-- Select Link Speed>\",IF($D$15=\"\",\"<-- Select Link Speed>\"))))","v":"<-- Select Link Speed>"}]
[null,null,"Intra-DC Redundancy Purchased?","Select"]
[null,"Customer Access Network"]
[null,"IP Addressing and Routing. A-Side interface details. Use CIDR notation, allocating higher address to Cisco.",{"$f":"IF($C$12=\"AMER\",\"SJC, A-Side Interface Details\",IF($C$12=\"EMEA\",\"London, A-Side Interface Details\",IF($C$12=\"APAC\",\"Singapore, A-Side Interface Details\",IF($C$12=\"Select\",\"<Select Geo Above>, A-Side Interface Details\",IF($C$12=\"\",\"<Select Geo Above>, A-Side Interface Details\")))))","v":"<Select Geo Above>, A-Side Interface Details"},"Value","NOTE"]
[null,null,"IP Address - Customer Side","<Cisco Assigned>","Cisco pre-allocated transient IP networks.\n\nPartner/Customer can override only with a an IP space that is public and 3rd party provider-independent.  Transient links require a /30 or /31 network, where Cisco reserves the higher IP."]
[null,null,"IP Address - Cisco Side","<Cisco Assigned>"]
[null,"IP Addressing and Routing. B-Side interface details. Use CIDR notation, allocating higher address to Cisco.",{"$f":"IF($C$12=\"AMER\",\"SJC, B-Side Interface Details\",IF($C$12=\"EMEA\",\"London, B-Side Interface Details\",IF($C$12=\"APAC\",\"Singapore, B-Side Interface Details\",IF($C$12=\"Select\",\"<Select Geo Above>, B-Side Interface Details\",IF($C$12=\"\",\"<Select Geo Above>, B-Side Interface Details\")))))","v":"<Select Geo Above>, B-Side Interface Details"},"Value"]
[null,null,"IP Address - Customer Side","<Cisco Assigned>"]
[null,null,"IP Address - Cisco Side","<Cisco Assigned>"]
[null,"IP Addressing and Routing. A-Side interface details. Use CIDR notation, allocating higher address to Cisco.",{"$f":"IF($C$12=\"AMER\",\"DFW, A-Side Interface Details\",IF($C$12=\"EMEA\",\"Amsterdam, A-Side Interface Details\",IF($C$12=\"APAC\",\"Tokyo, A-Side Interface Details\",IF($C$12=\"Select\",\"<Select Geo Above>, A-Side Interface Details\",IF($C$12=\"\",\"<Select Geo Above>, A-Side Interface Details\")))))","v":"<Select Geo Above>, A-Side Interface Details"},"Value"]
[null,null,"IP Address - Customer Side","<Cisco Assigned>"]
[null,null,"IP Address - Cisco Side","<Cisco Assigned>"]
[null,"IP Addressing and Routing. B-Side interface details. Use CIDR notation, allocating higher address to Cisco.",{"$f":"IF($C$12=\"AMER\",\"DFW, B-Side Interface Details\",IF($C$12=\"EMEA\",\"Amsterdam, B-Side Interface Details\",IF($C$12=\"APAC\",\"Tokyo, B-Side Interface Details\",IF($C$12=\"Select\",\"<Select Geo Above>, B-Side Interface Details\",IF($C$12=\"\",\"<Select Geo Above>, B-Side Interface Details\")))))","v":"<Select Geo Above>, B-Side Interface Details"},"Value"]
[null,null,"IP Address - Customer Side","<Cisco Assigned>"]
[null,null,"IP Address - Cisco Side","<Cisco Assigned>"]
[null,"Customer UC Application and IaaS IP Subnets.\n\nNOTE: IaaS subnet used only if IaaS add-on has been purchased.","Customer Application Networks","NOTE"]
[null,null,{"$f":"IF($C$12=\"AMER\",\"UC Apps: 69.168.17.0/24\",IF($C$12=\"EMEA\",\"UC Apps: 178.215.138.0/24\",IF($C$12=\"APAC\",\"UC Apps: 103.232.71.0/24\",IF($C$12=\"Select\",\"<Select Geo Above>\",IF($C$12=\"\",\"<Select Geo Above>\")))))","v":"<Select Geo Above>"},"Cisco will split this network into 2 /25 subnets and advertise those back to the customers CPE. One subnet per redundant DC in the respective region."]
[null,null,{"$f":"IF($C$12=\"AMER\",\"IaaS: 69.168.18.0/24\",IF($C$12=\"EMEA\",\"IaaS: 178.215.139.0/24\",IF($C$12=\"APAC\",\"IaaS: 103.232.69.0/24\",IF($C$12=\"Select\",\"<Select Geo Above>\",IF($C$12=\"\",\"<Select Geo Above>\")))))","v":"<Select Geo Above>"}]
[null,"Customer must provide a default route back to their network.  With Direct Connect Customers, no route filtering is applied.","Customer Provides Default Route"]
[null,null,"0.0.0.0"]
[null,"eBGP needs to be configured for each transient interface, with the BGP neighbor pointing to the corresponding interface on the Cisco side.\n\nSpecify the BGP information.","Customer Access BGP Configuration","Value","NOTE"]
[null,null,{"$f":"IF($C$12=\"AMER\",\"Cisco ASN - SJC\",IF($C$12=\"EMEA\",\"Cisco ASN - London\",IF($C$12=\"APAC\",\"Cisco ASN - Singapore\",IF($C$12=\"Select\",\"Cisco ASN - <Select Geo Above>\",IF($C$12=\"\",\"Cisco ASN - <Select Geo Above>\")))))","v":"Cisco ASN - <Select Geo Above>"},{"$f":"IF($C$12=\"AMER\",\"64610\",IF($C$12=\"EMEA\",\"64630\",IF($C$12=\"APAC\",\"64650\",IF($C$12=\"Select\",\"<Select Geo Above>\",IF($C$12=\"\",\"<Select Geo Above>\")))))","v":"<Select Geo Above>"},"Customer ASNs can be public or private."]
[null,null,{"$f":"IF($C$12=\"AMER\",\"Cisco ASN - DFW\",IF($C$12=\"EMEA\",\"Cisco ASN - Amsterdam\",IF($C$12=\"APAC\",\"Cisco ASN - Tokyo\",IF($C$12=\"Select\",\"Cisco ASN - <Select Geo Above>\",IF($C$12=\"\",\"Cisco ASN - <Select Geo Above>\")))))","v":"Cisco ASN - <Select Geo Above>"},{"$f":"IF($C$12=\"AMER\",\"64620\",IF($C$12=\"EMEA\",\"64640\",IF($C$12=\"APAC\",\"64660\",IF($C$12=\"Select\",\"<Select Geo Above>\",IF($C$12=\"\",\"<Select Geo Above>\")))))","v":"<Select Geo Above>"}]
[null,null,{"$f":"IF($C$12=\"AMER\",\"Customer ASN - SJC\",IF($C$12=\"EMEA\",\"Customer ASN - London\",IF($C$12=\"APAC\",\"Customer ASN - Singapore\",IF($C$12=\"Select\",\"Customer ASN - <Select Geo Above>\",IF($C$12=\"\",\"Customer ASN - <Select Geo Above>\")))))","v":"Customer ASN - <Select Geo Above>"}]
[null,null,{"$f":"IF($C$12=\"AMER\",\"Customer ASN - DFW\",IF($C$12=\"EMEA\",\"Customer ASN - Amsterdam\",IF($C$12=\"APAC\",\"Customer ASN - Tokyo\",IF($C$12=\"Select\",\"Customer ASN - <Select Geo Above>\",IF($C$12=\"\",\"Customer ASN - <Select Geo Above>\")))))","v":"Customer ASN - <Select Geo Above>"}]
[null,null,"BGP Password",null,"Optional"]
[null,null,"BFD Multiplier",null,5]
[null,null,"BFD Minimum-Interval",null,999]
[null,null,"Other Attributes if any"]

{"sheet":"Virtual Connect - VPN","index":8,"n_rows":67,"n_cols":7,"rows_kept":67,"cut":false,"hidden":true,"merged":[[4,1,4,4],[10,1,14,1],[32,1,34,1],[29,4,30,4],[5,1,9,4],[61,4,64,4],[15,1,15,4],[22,1,24,1],[25,1,27,1],[28,1,30,1],[54,1,54,4],[16,1,18,1],[19,1,21,1],[17,4,27,4],[55,3,55,4],[58,1,59,1],[60,1,66,1],[35,1,37,1],[33,4,38,4],[56,3,57,4],[55,1,57,1]]}
[]
[null,"Partner Name:"]
[null,"Customer Name:"]
[]
[null,"UCM Cloud Peering Questionnaire (PQ) - Direct Connect, VPN Connect"]
[null,"Peering Questionnaire (PQ) is used for gathering connection details when onboarding a UCM Cloud Partner\nComplete this sheet to provide Customer Peering information for Direct Connect via VPN.\n\nA PQ is required, at a minimum, per Partner/Customer, per Geography (AMER, EMEA, APAC)\nAdditional information on Peering can be found on the UCM Cloud Help Portal,  https://ucmcloudhelp.cisco.com/"]
[null,null,null,null,null,null,{"$f":"IF(specifyUse=\"Specify the Use for this Peering Questionnaire\",\"\",\"Please find Navigation below\")","v":"Please find Navigation below"}]
[null,null,null,null,null,null,"Instructions"]
[null,null,null,null,null,null,"General Contact Information"]
[null,null,null,null,null,null,"Webex Edge Connect"]
[null,"Specify the Geo for this PQ and connection details for each peering location.","Identify the Geo for this PQ",null,null,null,"Fiber Connect"]
[null,null,"Select",null,null,null,"Virtual Connect - VPN"]
[null,null,"Peering Locations",null,null,null,"Virtual Connect - vSD-WAN"]
[null,null,{"$f":"IF($C$12=\"AMER\",\"San Jose, CA\",IF($C$12=\"EMEA\",\"London, UK\",IF($C$12=\"APAC\",\"Singapore\",IF($C$12=\"Select\",\"<Select Geo Above>\",IF($C$12=\"\",\"<Select Geo Above>\")))))","v":"<Select Geo Above>"},null,null,null,"Virtual Connect - mSD-WAN"]
[null,null,{"$f":"IF($C$12=\"AMER\",\"Dallas, TX\",IF($C$12=\"EMEA\",\"Amsterdam, Netherlands\",IF($C$12=\"APAC\",\"Tokyo, Japan\",IF($C$12=\"Select\",\"<Select Geo Above>\",IF($C$12=\"\",\"<Select Geo Above>\")))))","v":"<Select Geo Above>"},null,null,null,"UCM Cloud Data Centers"]
[null,"GRE Tunnel Parameters"]
[null,"Tunnel Interface Address.  Use CIDR notation, allocating higher address to Cisco.",{"$f":"IF($C$12=\"AMER\",\"SJC Tunnel Interface\",IF($C$12=\"EMEA\",\"London Tunnel Interface\",IF($C$12=\"APAC\",\"Singapore Tunnel Interface\",IF($C$12=\"Select\",\"<Select Geo Above> Tunnel Interface\",IF($C$12=\"\",\"<Select Geo Above> Tunnel Interface\")))))","v":"<Select Geo Above> Tunnel Interface"},"Value","NOTE"]
[null,null,"IP Address - Customer Side",{"$f":"IF($C$12=\"AMER\",\"100.64.11.1/30\",IF($C$12=\"EMEA\",\"100.64.32.1/30\",IF($C$12=\"APAC\",\"100.64.52.1/30\",IF($C$12=\"Select\",\"<Select Geo Above>\",IF($C$12=\"\",\"<Select Geo Above>\")))))","v":"<Select Geo Above>"},"Customer Side Tunnel Int:\n\nInterface Tunnel<#>\nip address <assigned>\ntunnel source <customer>\ntunnel destination <cisco>"]
[null,null,"IP Address - Cisco Side",{"$f":"IF($C$12=\"AMER\",\"100.64.11.2/30\",IF($C$12=\"EMEA\",\"100.64.32.2/30\",IF($C$12=\"APAC\",\"100.64.52.2/30\",IF($C$12=\"Select\",\"<Select Geo Above>\",IF($C$12=\"\",\"<Select Geo Above>\")))))","v":"<Select Geo Above>"}]
[null,"Tunnel Interface Address.  Use CIDR notation, allocating higher address to Cisco.",{"$f":"IF($C$12=\"AMER\",\"DFW Tunnel Interface\",IF($C$12=\"EMEA\",\"Amsterdam Tunnel Interface\",IF($C$12=\"APAC\",\"Tokyo Tunnel Interface\",IF($C$12=\"Select\",\"<Select Geo Above> Tunnel Interface\",IF($C$12=\"\",\"<Select Geo Above> Tunnel Interface\")))))","v":"<Select Geo Above> Tunnel Interface"},"Value"]
[null,null,"IP Address - Customer Side",{"$f":"IF($C$12=\"AMER\",\"100.64.21.1/30\",IF($C$12=\"EMEA\",\"100.64.42.1/30\",IF($C$12=\"APAC\",\"100.64.62.1/30\",IF($C$12=\"Select\",\"<Select Geo Above>\",IF($C$12=\"\",\"<Select Geo Above>\")))))","v":"<Select Geo Above>"}]
[null,null,"IP Address - Cisco Side",{"$f":"IF($C$12=\"AMER\",\"100.64.21.2/30\",IF($C$12=\"EMEA\",\"100.64.42.2/30\",IF($C$12=\"APAC\",\"100.64.62.2/30\",IF($C$12=\"Select\",\"<Select Geo Above>\",IF($C$12=\"\",\"<Select Geo Above>\")))))","v":"<Select Geo Above>"}]
[null,"Tunnel Source and Destination Addresses.",{"$f":"IF($C$12=\"AMER\",\"SJC Tunnel Src/Dst\",IF($C$12=\"EMEA\",\"London Tunnel Src/Dst\",IF($C$12=\"APAC\",\"Singapore Tunnel Src/Dst\",IF($C$12=\"Select\",\"<Select Geo Above> Tunnel Src/Dst\",IF($C$12=\"\",\"<Select Geo Above> Tunnel Src/Dst\")))))","v":"<Select Geo Above> Tunnel Src/Dst"},"Value"]
[null,null,"IP Address - Customer Side"]
[null,null,"IP Address - Cisco Side","<Cisco Assigned>"]
[null,"Tunnel Source and Destination Addresses.",{"$f":"IF($C$12=\"AMER\",\"DFW Tunnel Src/Dst\",IF($C$12=\"EMEA\",\"Amsterdam Tunnel Src/Dst\",IF($C$12=\"APAC\",\"Tokyo Tunnel Src/Dst\",IF($C$12=\"Select\",\"<Select Geo Above> Tunnel Src/Dst\",IF($C$12=\"\",\"<Select Geo Above> Tunnel Src/Dst\")))))","v":"<Select Geo Above> Tunnel Src/Dst"},"Value"]
[null,null,"IP Address - Customer Side"]
[null,null,"IP Address - Cisco Side","<Cisco Assigned>"]
[null,"GRE Tunnel Keepalives","GRE Tunnel Keepalive Configuration","Value","NOTE"]
[null,null,"Seconds (10)",10,"Interface Tunnel<#>\nkeepalive 10 5\nip mtu 1300"]
[null,null,"Retries (5)",5]
[null,"IPSec Tunnel Parameters"]
[null,"IPSec Source and Destination Addresses.",{"$f":"IF($C$12=\"AMER\",\"SJC, Interface Details\",IF($C$12=\"EMEA\",\"London, Interface Details\",IF($C$12=\"APAC\",\"Singapore, Interface Details\",IF($C$12=\"Select\",\"<Select Geo Above>, Interface Details\",IF($C$12=\"\",\"<Select Geo Above>, Interface Details\")))))","v":"<Select Geo Above>, Interface Details"},"Value","NOTE"]
[null,null,"IP Address - Customer Side",null,"UCMC uses a dual tier head end architecture (IPsec and GRE on different devices).  Tunnel model is required for IPsec in this design."]
[null,null,"IP Address - Cisco Side",{"$f":"IF($C$12=\"AMER\",\"8.33.141.254\",IF($C$12=\"EMEA\",\"194.88.78.254\",IF($C$12=\"APAC\",\"113.29.106.254\",IF($C$12=\"Select\",\"<Select Geo Above>\",IF($C$12=\"\",\"<Select Geo Above>\")))))","v":"<Select Geo Above>"}]
[null,"IPSec Source and Destination Addresses.",{"$f":"IF($C$12=\"AMER\",\"DFW IPSec Peers\",IF($C$12=\"EMEA\",\"Amsterdam IPSec Peers\",IF($C$12=\"APAC\",\"Tokyo IPSec Peers\",IF($C$12=\"Select\",\"<Select Geo Above> IPSec Peers\",IF($C$12=\"\",\"<Select Geo Above> IPSec Peers\")))))","v":"<Select Geo Above> IPSec Peers"},"Value"]
[null,null,"IP Address - Customer Side"]
[null,null,"IP Address - Cisco Side",{"$f":"IF($C$12=\"AMER\",\"4.7.203.254\",IF($C$12=\"EMEA\",\"213.244.157.254\",IF($C$12=\"APAC\",\"8.244.130.254\",IF($C$12=\"Select\",\"<Select Geo Above>\",IF($C$12=\"\",\"<Select Geo Above>\")))))","v":"<Select Geo Above>"}]
[null,"Mode","Tunnel","Tunnel"]
[null,"IKE Parameters (Phase 1)","Cisco Recommended","Actual Value","NOTE"]
[null,"IKE Version","IKEv2","IKEv2"]
[null,"Encryption","AES256 - 256 Bit Keys","AES-GCM-256 (IKEv2)"]
[null,"Authentication","Pre-Shared Key","<Specify PSK>"]
[null,"Hashing Algorithm","SHA-256 - Secure Hash Standard 2 (256 bit)","SHA-256","N/A to IKEv2 with GCM encr."]
[null,"Lifetime (Seconds)",86400,86400]
[null,"Modulus Group","Diffie-Hellman group 14 (2048 bit)","Group 14"]
[null,"Pseudo-Random Function (PRF)","SHA-256 - Secure Hash Standard 2 (256 bit)","SHA-256","IKEv2 Only"]
[null,"IPSec IKE Parameters (Phase 2)","Cisco Recommended","Actual Value","NOTE"]
[null,"Encryption","esp-aes 256","esp-256-aes","AH not supported"]
[null,"Authentication","esp-sha256-hmac","esp-sha256-hmac","AH not supported"]
[null,"Lifetime (Seconds)",86400,86400]
[null,"Lifetime Size (Bytes)",4608000,4608000]
[null,"Perfect Forward Secrecy (PFS)","Enabled","Enabled"]
[null,"PFS Diffie-Hellman Group","Diffie-Hellman group 14 (2048-bit MODP)","Group 14","N/A if PFS = Disabled"]
[null,"Addressing and BGP"]
[null,"Customer UC Application and IaaS IP Subnets.\n\nNOTE: IaaS subnet used only if IaaS add-on has been purchased.","Customer Application Networks","NOTE"]
[null,null,{"$f":"IF($C$12=\"AMER\",\"UC Apps: 69.168.17.0/24\",IF($C$12=\"EMEA\",\"UC Apps: 178.215.138.0/24\",IF($C$12=\"APAC\",\"UC Apps: 103.232.71.0/24\",IF($C$12=\"Select\",\"<Select Geo Above>\",IF($C$12=\"\",\"<Select Geo Above>\")))))","v":"<Select Geo Above>"},"Cisco will split these networks into 2 /25 subnets and advertise those back to the customers CPE.  One /25 subnet per redundant DC (GRE Tunnel) in the respective region."]
[null,null,{"$f":"IF($C$12=\"AMER\",\"IaaS: 69.168.18.0/24\",IF($C$12=\"EMEA\",\"IaaS: 178.215.139.0/24\",IF($C$12=\"APAC\",\"IaaS: 103.232.69.0/24\",IF($C$12=\"Select\",\"<Select Geo Above>\",IF($C$12=\"\",\"<Select Geo Above>\")))))","v":"<Select Geo Above>"}]
[null,"Customer must provide a default route back to their network via BGP.","Customer Provides Default Route"]
[null,null,"0.0.0.0"]
[null,"Specify the BGP information.\n\neBGP needs to be configured for each transient interface, with the BGP neighbor pointing to the corresponding tunnel interface on the Cisco side.","Customer Access BGP Configuration","Value","NOTE"]
[null,null,{"$f":"IF($C$12=\"AMER\",\"Cisco ASN - SJC\",IF($C$12=\"EMEA\",\"Cisco ASN - London\",IF($C$12=\"APAC\",\"Cisco ASN - Singapore\",IF($C$12=\"Select\",\"Cisco ASN - <Select Geo Above>\",IF($C$12=\"\",\"Cisco ASN - <Select Geo Above>\")))))","v":"Cisco ASN - <Select Geo Above>"},{"$f":"IF($C$12=\"AMER\",\"64612\",IF($C$12=\"EMEA\",\"64632\",IF($C$12=\"APAC\",\"64652\",IF($C$12=\"Select\",\"<Select Geo Above>\",IF($C$12=\"\",\"<Select Geo Above>\")))))","v":"<Select Geo Above>"},"Cisco specified Private ASN for both Cisco and Customer."]
[null,null,{"$f":"IF($C$12=\"AMER\",\"Cisco ASN - DFW\",IF($C$12=\"EMEA\",\"Cisco ASN - Amsterdam\",IF($C$12=\"APAC\",\"Cisco ASN - Tokyo\",IF($C$12=\"Select\",\"Cisco ASN - <Select Geo Above>\",IF($C$12=\"\",\"Cisco ASN - <Select Geo Above>\")))))","v":"Cisco ASN - <Select Geo Above>"},{"$f":"IF($C$12=\"AMER\",\"64622\",IF($C$12=\"EMEA\",\"64642\",IF($C$12=\"APAC\",\"64662\",IF($C$12=\"Select\",\"<Select Geo Above>\",IF($C$12=\"\",\"<Select Geo Above>\")))))","v":"<Select Geo Above>"}]
[null,null,{"$f":"IF($C$12=\"AMER\",\"Customer ASN - SJC\",IF($C$12=\"EMEA\",\"Customer ASN - London\",IF($C$12=\"APAC\",\"Customer ASN - Singapore\",IF($C$12=\"Select\",\"Customer ASN - <Select Geo Above>\",IF($C$12=\"\",\"Customer ASN - <Select Geo Above>\")))))","v":"Customer ASN - <Select Geo Above>"},{"$f":"IF($C$12=\"AMER\",\"64611\",IF($C$12=\"EMEA\",\"64631\",IF($C$12=\"APAC\",\"64651\",IF($C$12=\"Select\",\"<Select Geo Above>\",IF($C$12=\"\",\"<Select Geo Above>\")))))","v":"<Select Geo Above>"}]
[null,null,{"$f":"IF($C$12=\"AMER\",\"Customer ASN - DFW\",IF($C$12=\"EMEA\",\"Customer ASN - Amsterdam\",IF($C$12=\"APAC\",\"Customer ASN - Tokyo\",IF($C$12=\"Select\",\"Customer ASN - <Select Geo Above>\",IF($C$12=\"\",\"Customer ASN - <Select Geo Above>\")))))","v":"Customer ASN - <Select Geo Above>"},{"$f":"IF($C$12=\"AMER\",\"64621\",IF($C$12=\"EMEA\",\"64641\",IF($C$12=\"APAC\",\"64661\",IF($C$12=\"Select\",\"<Select Geo Above>\",IF($C$12=\"\",\"<Select Geo Above>\")))))","v":"<Select Geo Above>"}]
[null,null,"BGP Password",null,"Optional"]
[null,null,"Other Attributes if any"]

{"sheet":"Virtual Connect - vSD-WAN","index":9,"n_rows":63,"n_cols":7,"rows_kept":63,"cut":false,"hidden":true,"merged":[[22,1,24,1],[22,3,22,4],[23,3,24,4],[4,1,4,4],[10,1,14,1],[15,1,15,4],[16,1,18,1],[17,4,21,4],[19,1,21,1],[5,1,9,4],[34,1,62,1],[35,4,62,4],[25,1,26,1],[27,1,33,1],[28,4,31,4]]}
[]
[null,"Partner Name:"]
[null,"Customer Name:"]
[]
[null,"UCM Cloud Peering Questionnaire (PQ) - Direct Connect, Viptela SD-WAN"]
[null,"Peering Questionnaire (PQ) is used for gathering connection details when onboarding a UCM Cloud Partner or Direct Connect Customer.\n\nA PQ is required, at min, per Partner/Customer, per Geography, i.e. AMER, EMEA, APAC.\nAdditional information on Peering can be found on the UCM Cloud Help Portal,  https://ucmcloudhelp.cisco.com/"]
[null,null,null,null,null,null,{"$f":"IF(specifyUse=\"Specify the Use for this Peering Questionnaire\",\"\",\"Please find Navigation below\")","v":"Please find Navigation below"}]
[null,null,null,null,null,null,"Instructions"]
[null,null,null,null,null,null,"General Contact Information"]
[null,null,null,null,null,null,"Webex Edge Connect"]
[null,"Specify the Geo for this PQ and connection details for each peering location.","Identify the Geo for this PQ",null,null,null,"Fiber Connect"]
[null,null,"Select",null,null,null,"Virtual Connect - VPN"]
[null,null,"Peering Locations",null,null,null,"Virtual Connect - vSD-WAN"]
[null,null,{"$f":"IF($C$12=\"AMER\",\"San Jose, CA\",IF($C$12=\"EMEA\",\"London, UK\",IF($C$12=\"APAC\",\"Singapore\",IF($C$12=\"Select\",\"<Select Geo Above>\",IF($C$12=\"\",\"<Select Geo Above>\")))))","v":"<Select Geo Above>"},null,null,null,"Virtual Connect - mSD-WAN"]
[null,null,{"$f":"IF($C$12=\"AMER\",\"Dallas, TX\",IF($C$12=\"EMEA\",\"Amsterdam, Netherlands\",IF($C$12=\"APAC\",\"Tokyo, Japan\",IF($C$12=\"Select\",\"<Select Geo Above>\",IF($C$12=\"\",\"<Select Geo Above>\")))))","v":"<Select Geo Above>"},null,null,null,"UCM Cloud Data Centers"]
[null,"Customer Access Network / Viptela Service Networks"]
[null,"Service interface details (to UCMC).",{"$f":"IF($C$12=\"AMER\",\"SJC, Interface Details\",IF($C$12=\"EMEA\",\"London, Interface Details\",IF($C$12=\"APAC\",\"Singapore, Interface Details\",IF($C$12=\"Select\",\"<Select Geo Above>, Interface Details\",IF($C$12=\"\",\"<Select Geo Above>, Interface Details\")))))","v":"<Select Geo Above>, Interface Details"},"Value","NOTE"]
[null,null,"IP Address - Customer Side",{"$f":"IF($C$12=\"AMER\",\"100.64.10.50/28\",IF($C$12=\"EMEA\",\"100.64.30.50/28\",IF($C$12=\"APAC\",\"100.64.50.50/28\",IF($C$12=\"Select\",\"<Select Geo Above>\",IF($C$12=\"\",\"<Select Geo Above>\")))))","v":"<Select Geo Above>"},"Cisco pre-allocated transient IP networks.  "]
[null,null,"IP Address - Cisco Side",{"$f":"IF($C$12=\"AMER\",\"100.64.10.49/28\",IF($C$12=\"EMEA\",\"100.64.30.49/28\",IF($C$12=\"APAC\",\"100.64.50.49/28\",IF($C$12=\"Select\",\"<Select Geo Above>\",IF($C$12=\"\",\"<Select Geo Above>\")))))","v":"<Select Geo Above>"}]
[null,"Service interface details (to UCMC).",{"$f":"IF($C$12=\"AMER\",\"DFW, Interface Details\",IF($C$12=\"EMEA\",\"Amsterdam, Interface Details\",IF($C$12=\"APAC\",\"Tokyo, Interface Details\",IF($C$12=\"Select\",\"<Select Geo Above>, Interface Details\",IF($C$12=\"\",\"<Select Geo Above>, Interface Details\")))))","v":"<Select Geo Above>, Interface Details"},"Value"]
[null,null,"IP Address - Customer Side",{"$f":"IF($C$12=\"AMER\",\"100.64.20.50/28\",IF($C$12=\"EMEA\",\"100.64.40.50/28\",IF($C$12=\"APAC\",\"100.64.60.50/28\",IF($C$12=\"Select\",\"<Select Geo Above>\",IF($C$12=\"\",\"<Select Geo Above>\")))))","v":"<Select Geo Above>"}]
[null,null,"IP Address - Cisco Side",{"$f":"IF($C$12=\"AMER\",\"100.64.20.49/28\",IF($C$12=\"EMEA\",\"100.64.40.49/28\",IF($C$12=\"APAC\",\"100.64.60.49/28\",IF($C$12=\"Select\",\"<Select Geo Above>\",IF($C$12=\"\",\"<Select Geo Above>\")))))","v":"<Select Geo Above>"}]
[null,"Customer UC Application and IaaS IP Subnets.\n\nNOTE: IaaS subnet used only if IaaS add-on has been purchased.","Customer Application Networks","NOTE"]
[null,null,{"$f":"IF($C$12=\"AMER\",\"UC Apps: 69.168.17.0/24\",IF($C$12=\"EMEA\",\"UC Apps: 178.215.138.0/24\",IF($C$12=\"APAC\",\"UC Apps: 103.232.71.0/24\",IF($C$12=\"Select\",\"<Select Geo Above>\",IF($C$12=\"\",\"<Select Geo Above>\")))))","v":"<Select Geo Above>"},"Cisco will split this network into 2 /25 subnets.  One subnet per redundant DC in the respective region."]
[null,null,{"$f":"IF($C$12=\"AMER\",\"IaaS: 69.168.18.0/24\",IF($C$12=\"EMEA\",\"IaaS: 178.215.139.0/24\",IF($C$12=\"APAC\",\"IaaS: 103.232.69.0/24\",IF($C$12=\"Select\",\"<Select Geo Above>\",IF($C$12=\"\",\"<Select Geo Above>\")))))","v":"<Select Geo Above>"}]
[null,"List of customer networks in CIDR notation  (Optional).","Customer Networks Advertised to UCM Cloud"]
[]
[null,"eBGP needs to be configured for each transient interface, with the BGP neighbor pointing to the corresponding interface on the Cisco side.\n\nSpecify the BGP information.","Customer Access BGP Configuration","Value","NOTE"]
[null,null,{"$f":"IF($C$12=\"AMER\",\"Cisco ASN - SJC\",IF($C$12=\"EMEA\",\"Cisco ASN - London\",IF($C$12=\"APAC\",\"Cisco ASN - Singapore\",IF($C$12=\"Select\",\"Cisco ASN - <Select Geo Above>\",IF($C$12=\"\",\"Cisco ASN - <Select Geo Above>\")))))","v":"Cisco ASN - <Select Geo Above>"},{"$f":"IF($C$12=\"AMER\",\"64612\",IF($C$12=\"EMEA\",\"64632\",IF($C$12=\"APAC\",\"64652\",IF($C$12=\"Select\",\"<Select Geo Above>\",IF($C$12=\"\",\"<Select Geo Above>\")))))","v":"<Select Geo Above>"},"Customer ASNs can be public or private."]
[null,null,{"$f":"IF($C$12=\"AMER\",\"Cisco ASN - DFW\",IF($C$12=\"EMEA\",\"Cisco ASN - Amsterdam\",IF($C$12=\"APAC\",\"Cisco ASN - Tokyo\",IF($C$12=\"Select\",\"Cisco ASN - <Select Geo Above>\",IF($C$12=\"\",\"Cisco ASN - <Select Geo Above>\")))))","v":"Cisco ASN - <Select Geo Above>"},{"$f":"IF($C$12=\"AMER\",\"64622\",IF($C$12=\"EMEA\",\"64642\",IF($C$12=\"APAC\",\"64662\",IF($C$12=\"Select\",\"<Select Geo Above>\",IF($C$12=\"\",\"<Select Geo Above>\")))))","v":"<Select Geo Above>"}]
[null,null,{"$f":"IF($C$12=\"AMER\",\"Customer ASN - SJC\",IF($C$12=\"EMEA\",\"Customer ASN - London\",IF($C$12=\"APAC\",\"Customer ASN - Singapore\",IF($C$12=\"Select\",\"Customer ASN - <Select Geo Above>\",IF($C$12=\"\",\"Customer ASN - <Select Geo Above>\")))))","v":"Customer ASN - <Select Geo Above>"}]
[null,null,{"$f":"IF($C$12=\"AMER\",\"Customer ASN - DFW\",IF($C$12=\"EMEA\",\"Customer ASN - Amsterdam\",IF($C$12=\"APAC\",\"Customer ASN - Tokyo\",IF($C$12=\"Select\",\"Customer ASN - <Select Geo Above>\",IF($C$12=\"\",\"Customer ASN - <Select Geo Above>\")))))","v":"Customer ASN - <Select Geo Above>"}]
[null,null,"BGP Password",null,"Optional"]
[null,null,"Other Attributes if any"]
[null,"Baseline information needed for Cisco to configure vEdge to be added to the Customers deployment.\n\nSpecify the base information.","Customer Access Viptela Configuration","Value","NOTE"]
[null,null,"Customer SDWAN Organization Name",null,"For each region where Viptela SD-WAN was ordered, UCM Cloud will stand up 2 vEdge Cloud Devices, one per redundant datacenter."]
[null,null,"Customer vBond DNS "]
[null,null,"Customer vBond IP "]
[null,null,"vManage Version"]
[null,null,"vEdge Cloud Version"]
[null,null,"Number of remote sites connecting to UCM Cloud"]
[null,null,"Number of IP subnets to be passed to UCM Cloud"]
[null,null,{"$f":"IF($C$12=\"AMER\",\"SJC Specific Details\",IF($C$12=\"EMEA\",\"London Specific Details\",IF($C$12=\"APAC\",\"Singapore Specific Details\",IF($C$12=\"Select\",\"<Select Geo Above> Specific Details\",IF($C$12=\"\",\"<Select Geo Above> Specific Details\")))))","v":"<Select Geo Above> Specific Details"}]
[null,null,"vEdge Hostname"]
[null,null,"vEdge System-IP"]
[null,null,"Site-id"]
[null,null,"Chassis Number","Can be assigned at onboarding"]
[null,null,"Token","Can be assigned at onboarding"]
[null,null,"Internet Interface Private IP","<Cisco Assigned>"]
[null,null,"Internet interface Public IP","<Cisco Assigned>"]
[null,null,{"$f":"IF($C$12=\"AMER\",\"DFW Specific Details\",IF($C$12=\"EMEA\",\"Amsterdam Specific Details\",IF($C$12=\"APAC\",\"Tokyo Specific Details\",IF($C$12=\"Select\",\"<Select Geo Above> Specific Details\",IF($C$12=\"\",\"<Select Geo Above> Specific Details\")))))","v":"<Select Geo Above> Specific Details"}]
[null,null,"vEdge Hostname"]
[null,null,"vEdge System-IP"]
[null,null,"Site-id"]
[null,null,"Chassis Number","Can be assigned at onboarding"]
[null,null,"Token","Can be assigned at onboarding"]
[null,null,"Internet Interface Private IP","<Cisco Assigned>"]
[null,null,"Internet interface Public IP","<Cisco Assigned>"]
[null,null,"Interface Allocation","Interface Descriptions"]
[null,null,"mgmt0","not connected"]
[null,null,"gig0/0","Internet"]
[null,null,"gig0/1","transient network (Service Interface)"]
[null,null,"gig0/2","transient network (Service Interface)"]

{"sheet":"Virtual Connect - mSD-WAN","index":10,"n_rows":42,"n_cols":7,"rows_kept":42,"cut":false,"hidden":true,"merged":[[4,1,4,4],[10,1,14,1],[15,1,15,4],[16,1,18,1],[17,4,21,4],[19,1,21,1],[5,1,9,4],[32,1,41,1],[33,4,41,4],[22,1,24,1],[22,3,22,4],[23,3,24,4],[25,1,26,1],[27,1,31,1],[28,4,30,4]]}
[]
[null,"Partner Name:"]
[null,"Customer Name:"]
[]
[null,"UCM Cloud Peering Questionnaire (PQ) - Direct Connect, Meraki SD-WAN"]
[null,"Peering Questionnaire (PQ) is used for gathering connection details when onboarding a UCM Cloud Partner or Direct Connect Customer.\n\nA PQ is required, at min, per Partner/Customer, per Geography, i.e. AMER, EMEA, APAC.\nAdditional information on Peering can be found on the UCM Cloud Help Portal,  https://ucmcloudhelp.cisco.com/"]
[null,null,null,null,null,null,{"$f":"IF(specifyUse=\"Specify the Use for this Peering Questionnaire\",\"\",\"Please find Navigation below\")","v":"Please find Navigation below"}]
[null,null,null,null,null,null,"Instructions"]
[null,null,null,null,null,null,"General Contact Information"]
[null,null,null,null,null,null,"Webex Edge Connect"]
[null,"Specify the Geo for this PQ and connection details for each peering location.","Identify the Geo for this PQ",null,null,null,"Fiber Connect"]
[null,null,"Select",null,null,null,"Virtual Connect - VPN"]
[null,null,"Peering Locations",null,null,null,"Virtual Connect - vSD-WAN"]
[null,null,{"$f":"IF($C$12=\"AMER\",\"San Jose, CA\",IF($C$12=\"EMEA\",\"London, UK\",IF($C$12=\"APAC\",\"Singapore\",IF($C$12=\"Select\",\"<Select Geo Above>\",IF($C$12=\"\",\"<Select Geo Above>\")))))","v":"<Select Geo Above>"},null,null,null,"Virtual Connect - mSD-WAN"]
[null,null,{"$f":"IF($C$12=\"AMER\",\"Dallas, TX\",IF($C$12=\"EMEA\",\"Amsterdam, Netherlands\",IF($C$12=\"APAC\",\"Tokyo, Japan\",IF($C$12=\"Select\",\"<Select Geo Above>\",IF($C$12=\"\",\"<Select Geo Above>\")))))","v":"<Select Geo Above>"},null,null,null,"UCM Cloud Data Centers"]
[null,"Customer Access Network / Meraki Service Networks"]
[null,"Interface details (to UCMC).",{"$f":"IF($C$12=\"AMER\",\"SJC,  Interface Details\",IF($C$12=\"EMEA\",\"London, Interface Details\",IF($C$12=\"APAC\",\"Singapore, Interface Details\",IF($C$12=\"Select\",\"<Select Geo Above>, Interface Details\",IF($C$12=\"\",\"<Select Geo Above>, Interface Details\")))))","v":"<Select Geo Above>, Interface Details"},"Value","NOTE"]
[null,null,"IP Address - Customer Side",{"$f":"IF($C$12=\"AMER\",\"100.64.10.50/28\",IF($C$12=\"EMEA\",\"100.64.30.50/28\",IF($C$12=\"APAC\",\"100.64.50.50/28\",IF($C$12=\"Select\",\"<Select Geo Above>\",IF($C$12=\"\",\"<Select Geo Above>\")))))","v":"<Select Geo Above>"},"Cisco pre-allocated transient IP networks.  "]
[null,null,"IP Address - Cisco Side",{"$f":"IF($C$12=\"AMER\",\"100.64.10.49/28\",IF($C$12=\"EMEA\",\"100.64.30.49/28\",IF($C$12=\"APAC\",\"100.64.50.49/28\",IF($C$12=\"Select\",\"<Select Geo Above>\",IF($C$12=\"\",\"<Select Geo Above>\")))))","v":"<Select Geo Above>"}]
[null,"Interface details (to UCMC).",{"$f":"IF($C$12=\"AMER\",\"DFW, Interface Details\",IF($C$12=\"EMEA\",\"Amsterdam, Interface Details\",IF($C$12=\"APAC\",\"Tokyo, Interface Details\",IF($C$12=\"Select\",\"<Select Geo Above>, Interface Details\",IF($C$12=\"\",\"<Select Geo Above>, Interface Details\")))))","v":"<Select Geo Above>, Interface Details"},"Value"]
[null,null,"IP Address - Customer Side",{"$f":"IF($C$12=\"AMER\",\"100.64.20.50/28\",IF($C$12=\"EMEA\",\"100.64.40.50/28\",IF($C$12=\"APAC\",\"100.64.60.50/28\",IF($C$12=\"Select\",\"<Select Geo Above>\",IF($C$12=\"\",\"<Select Geo Above>\")))))","v":"<Select Geo Above>"}]
[null,null,"IP Address - Cisco Side",{"$f":"IF($C$12=\"AMER\",\"100.64.20.49/28\",IF($C$12=\"EMEA\",\"100.64.40.49/28\",IF($C$12=\"APAC\",\"100.64.60.49/28\",IF($C$12=\"Select\",\"<Select Geo Above>\",IF($C$12=\"\",\"<Select Geo Above>\")))))","v":"<Select Geo Above>"}]
[null,"Customer UC Application and IaaS IP Subnets.\n\nNOTE: IaaS subnet used only if IaaS add-on has been purchased.","Customer Application Networks","NOTE"]
[null,null,{"$f":"IF($C$12=\"AMER\",\"UC Apps: 69.168.17.0/24\",IF($C$12=\"EMEA\",\"UC Apps: 178.215.138.0/24\",IF($C$12=\"APAC\",\"UC Apps: 103.232.71.0/24\",IF($C$12=\"Select\",\"<Select Geo Above>\",IF($C$12=\"\",\"<Select Geo Above>\")))))","v":"<Select Geo Above>"},"Cisco will split this network into 2 /25 subnets.  One subnet per redundant DC in the respective region."]
[null,null,{"$f":"IF($C$12=\"AMER\",\"IaaS: 69.168.18.0/24\",IF($C$12=\"EMEA\",\"IaaS: 178.215.139.0/24\",IF($C$12=\"APAC\",\"IaaS: 103.232.69.0/24\",IF($C$12=\"Select\",\"<Select Geo Above>\",IF($C$12=\"\",\"<Select Geo Above>\")))))","v":"<Select Geo Above>"}]
[null,"List of customer networks in CIDR notation  (Optional).","Customer Networks Advertised to UCM Cloud"]
[]
[null,"eBGP needs to be configured for each transient interface, with the BGP neighbor pointing to the corresponding interface on the Cisco side.\nSpecify the BGP information.","Customer Access BGP Configuration","Value","NOTE"]
[null,null,{"$f":"IF($C$12=\"AMER\",\"Cisco ASN - SJC\",IF($C$12=\"EMEA\",\"Cisco ASN - London\",IF($C$12=\"APAC\",\"Cisco ASN - Singapore\",IF($C$12=\"Select\",\"Cisco ASN - <Select Geo Above>\",IF($C$12=\"\",\"Cisco ASN - <Select Geo Above>\")))))","v":"Cisco ASN - <Select Geo Above>"},{"$f":"IF($C$12=\"AMER\",\"64612\",IF($C$12=\"EMEA\",\"64632\",IF($C$12=\"APAC\",\"64652\",IF($C$12=\"Select\",\"<Select Geo Above>\",IF($C$12=\"\",\"<Select Geo Above>\")))))","v":"<Select Geo Above>"},"Customer ASN can be public or private."]
[null,null,{"$f":"IF($C$12=\"AMER\",\"Cisco ASN - DFW\",IF($C$12=\"EMEA\",\"Cisco ASN - Amsterdam\",IF($C$12=\"APAC\",\"Cisco ASN - Tokyo\",IF($C$12=\"Select\",\"Cisco ASN - <Select Geo Above>\",IF($C$12=\"\",\"Cisco ASN - <Select Geo Above>\")))))","v":"Cisco ASN - <Select Geo Above>"},{"$f":"IF($C$12=\"AMER\",\"64622\",IF($C$12=\"EMEA\",\"64642\",IF($C$12=\"APAC\",\"64662\",IF($C$12=\"Select\",\"<Select Geo Above>\",IF($C$12=\"\",\"<Select Geo Above>\")))))","v":"<Select Geo Above>"}]
[null,null,"Customer ASN"]
[null,null,"Other Attributes if any"]
[null,"Baseline information needed for Cisco to configure vMX to be added to the Customers deployment.\n\nSpecify the base information.","Customer Access Meraki Configuration","Value","NOTE"]
[null,null,"vMX Licenses for this deployment , 2 required","Select","For each region where Meraki SD-WAN was ordered, UCM Cloud will stand up 2 vMX Devices at the sizing specified by the license selection, one per redundant datacenter."]
[null,null,"Number of remote sites connecting to UCM Cloud"]
[null,null,"Number of IP subnets to be passed to UCM Cloud"]
[null,null,{"$f":"IF($C$12=\"AMER\",\"SJC Specific Details\",IF($C$12=\"EMEA\",\"London Specific Details\",IF($C$12=\"APAC\",\"Singapore Specific Details\",IF($C$12=\"Select\",\"<Select Geo Above> Specific Details\",IF($C$12=\"\",\"<Select Geo Above> Specific Details\")))))","v":"<Select Geo Above> Specific Details"}]
[null,null,"Internet Interface Public IP","<Cisco Assigned>"]
[null,null,"vMX Token","Can be assigned at onboarding"]
[null,null,{"$f":"IF($C$12=\"AMER\",\"DFW Specific Details\",IF($C$12=\"EMEA\",\"Amsterdam Specific Details\",IF($C$12=\"APAC\",\"Tokyo Specific Details\",IF($C$12=\"Select\",\"<Select Geo Above> Specific Details\",IF($C$12=\"\",\"<Select Geo Above> Specific Details\")))))","v":"<Select Geo Above> Specific Details"}]
[null,null,"Internet Interface Public IP","<Cisco Assigned>"]
[null,null,"vMX Token","Can be assigned at onboarding"]

{"sheet":"Dedicated Instance Data Centers","index":11,"n_rows":33,"n_cols":12,"rows_kept":33,"cut":false,"hidden":false,"merged":[[2,5,4,5],[5,5,10,5],[11,5,16,5],[17,5,22,5],[23,5,28,5],[26,9,28,9],[29,9,31,9],[32,9,34,9],[5,8,10,8],[11,8,16,8],[17,9,19,9],[20,9,22,9],[23,9,25,9],[23,8,28,8],[29,8,34,8],[2,9,4,9],[5,9,7,9],[8,9,10,9],[11,9,13,9],[14,9,16,9],[26,7,28,7],[29,7,31,7],[32,7,34,7],[29,6,34,6],[2,8,4,8],[2,7,4,7],[5,6,10,6],[17,7,19,7],[20,7,22,7],[5,7,7,7],[8,7,10,7],[11,7,13,7],[11,6,16,6],[17,6,22,6],[17,8,22,8],[2,6,4,6],[32,2,34,2],[32,3,34,3],[32,4,34,4],[29,1,34,1],[29,2,31,2],[29,3,31,3],[29,4,31,4],[5,1,10,1],[2,1,4,1],[2,2,4,2],[2,3,4,3],[2,4,4,4],[5,3,7,3],[5,4,7,4],[8,2,10,2],[8,3,10,3],[8,4,10,4],[5,2,7,2],[26,2,28,2],[23,3,25,3],[26,3,28,3],[23,4,25,4],[26,4,28,4],[17,4,19,4],[20,2,22,2],[20,3,22,3],[20,4,22,4],[23,2,25,2],[29,5,31,5],[32,5,34,5],[23,7,25,7],[11,1,16,1],[11,2,13,2],[11,3,13,3],[11,4,13,4],[14,2,16,2],[14,3,16,3],[14,4,16,4],[14,7,16,7],[17,1,22,1],[23,1,28,1],[23,6,28,6],[17,2,19,2],[17,3,19,3]]}
[]
[]
[null,"Region ","Peering Location","Equinix DC","Address","Cisco ASN","UC Application Network","UC Application Network per DC","IaaS Network","IaaS Network per DC"]
[]
[]
[null,"AMER","San Jose, CA","Equinix SV1 – San Jose, CA USA (SJC03)","11 Great Oaks Blvd \nSan Jose, CA 95119 \nSuite SV:01:001940",13445,"69.168.17.0/24","69.168.17.0/25","69.168.18.0/24","69.168.18.0/25"]
[null,null,null,null,null,null,null,null,null,null,null,{"$f":"IF(specifyUse=\"Specify the Use for this Peering Questionnaire\",\"\",\"Please find Navigation below\")","v":"Please find Navigation below"}]
[null,null,null,null,null,null,null,null,null,null,null,"Instructions"]
[null,null,"Dallas, TX","Equinix DA6 – Dallas, TX USA (DFW10)","1951 N. Stemmons Freeway, Suite 135\nDallas, TX 75207 ",null,null,"69.168.17.128/25",null,"69.168.18.128/25",null,"General Contact Information"]
[null,null,null,null,null,null,null,null,null,null,null,"Partner Readiness Dates"]
[null,null,null,null,null,null,null,null,null,null,null,"Partner Peering Worksheet"]
[null,"EMEA","London, UK","Equinix LD8 – London, UK","6/7/8/9 Harbour Exchange Square, London, United Kingdom, E14 9GE",13445,"178.215.138.0/24","178.215.138.0/25","178.215.139.0/24","178.215.139.0/25",null,"Dedicated Instance Data Centers"]
[]
[]
[null,null,"Amsterdam, Netherlands","Equinix AM2 – Amsterdam, Netherlands","Luttenbergweg 4, Amsterdam, Netherlands, 1101 EC",null,null,"178.215.138.128/25",null,"178.215.139.128/25"]
[]
[]
[null,"EU","Frankfurt, Germany","Equinix FR2 – Frankfurt, Germany","Cisco Systems - HCSG:618697\nFriesstrasse 24-26\nFrankfurt, 60388 DE",13445,"178.215.131.0/24","178.215.131.0/25","178.215.133.0/24","178.215.133.0/25"]
[]
[]
[null,null,"Amsterdam, Netherlands","Equinix AM2 – Amsterdam, Netherlands","Luttenbergweg 4, Amsterdam, Netherlands, 1101 EC",null,null,"178.215.131.128/25",null,"178.215.133.128/25"]
[]
[]
[null,"APAC","Singapore","Equinix SG1 - Singapore","20 Ayer Rajah Crescent,\nAyer Rajah Industrial Park, \nSingapore 139964",13445,"103.232.71.0/24","103.232.71.0/25","103.232.69.0/24","103.232.69.0/25"]
[]
[]
[null,null,"Tokyo, Japan","Equinix TY2 - Tokyo, Japan","3-8-21 Higashi Shinagawa\nShinagawa-ku, Tokyo, Japan 104-0002",null,null,"103.232.71.128/25",null,"103.232.69.128/25"]
[]
[]
[null,"AUS","Melbourne, Australia","Equinix ME2 - Melbourne, AU","552 - 578 Lorimer street\nPort Melbourne VIC 3207, Australia\nAyer Rajah Industrial Park, \nSingapore 139964",399937,"178.215.128.0/24","178.215.128.0/25","178.215.129.0/24","178.215.129.0/25"]
[]
[]
[null,null,"Sydney, Australia","Equinix SY5 - Sydney, AU","Unit B, 200 Bourke Road\nAlexandria, Sydney, AU, NSW 2015\nShinagawa-ku, Tokyo, Japan 104-0002",13445,null,"178.215.128.128/25",null,"178.215.128.129/25"]